[Event "Int SVK-ch Open 2020"]
[Site "Drienica"]
[Date "2020.08.08"]
[Round "2.15"]
[White "Hlavac, Peter"]
[Black "Stevik Patrik"]
[Result "0-1"]
[ECO "E63"]
[WhiteElo "1961"]
[BlackElo "2076"]
[Annotator "ChessBase"]
[PlyCount "64"]
[EventDate "2020.08.07"]
[EventType "swiss"]
[EventCountry "SVK"]
[SourceTitle "playchess.com"]
[Source "ChessBase"]
[SourceQuality "1"]
[TimeControl "40/5400+30:1800+30"]

1. Nf3 {[%emt 0:03:28]} Nf6 {[%emt 0:00:00]} 2. c4 {[%emt 0:00:05]} g6 {[%emt 0:00:00]} 3. Nc3 {[%emt 0:00:14]} Bg7 {[%emt 0:00:00]} 4. g3 {[%emt 0:06:38]} O-O {[%emt 0:00:21]} 5. Bg2 {[%emt 0:00:05]} d6 {[%emt 0:00:35]} 6. O-O {[%emt 0:02:49]} Nc6 {[%emt 0:06:23]} 7. d4 {[%emt 0:00:54]} a6 {[%emt 0:03:15]} 8. e4 {[%emt 0:05:17]} Na5 {[%emt 0:02:22]} 9. Qe2 {[%emt 0:03:14]} c5 {[%emt 0:06:47]} 10. Be3 {[%emt 0:06:45]} Ng4 {[%emt 0:02:25]} 11. Rfd1 {[%emt 0:03:12]} Nxe3 {[%emt 0:01:08]} 12. fxe3 {[%emt 0:00:07]} Be6 {[%emt 0:01:39]} 13. Nd5 {[%emt 0:02:46]} cxd4 {[%emt 0:09:08]} 14. exd4 {[%emt 0:04:06]} Rc8 {[%emt 0:01:19]} 15. Rac1 {[%emt 0:02:01]} Bh6 {[%emt 0:09:21]} 16. Rc3 {[%emt 0:02:28]} Bg4 {[%emt 0:05:08]} 17. b4 {[%emt 0:08:24]} e6 {[%emt 0:08:55]} 18. Ne3 {[%emt 0:15:15]} Bxe3+ {[%emt 0:02:12]} 19. Qxe3 {[%emt 0:00:06]} Nxc4 {[%emt 0:00:17]} 20. Qc1 {[%emt 0:04:34]} b5 {[%emt 0:01:44]} 21. Rdd3 {[%emt 0:00:29]} Bxf3 {[%emt 0:01:15]} 22. Bxf3 {[%emt 0:01:30]} Qb6 {[%emt 0:02:10]} 23. Kg2 {[%emt 0:00:37]} e5 {[%emt 0:02:35]} 24. dxe5 {[%emt 0:02:36]} dxe5 {[%emt 0:03:06]} 25. Rd5 {[%emt 0:02:50]} Rcd8 {[%emt 0:02:41]} 26. Be2 {[%emt 0:03:42]} Rxd5 {[%emt 0:05:04]} 27. exd5 {[%emt 0:00:16]} Qd4 {[%emt 0:00:51]} 28. Bxc4 {[%emt 0:02:47]} bxc4 {[%emt 0:01:12]} 29. Rxc4 {[%emt 0:00:17]} Qxd5+ {[%emt 0:00:05]} 30. Kf2 {[%emt 0:03:17]} e4 {[%emt 0:00:34]} 31. Qc2 {[%emt 0:00:50]} Re8 {[%emt 0:03:15]} 32. Rc8 {[%emt 0:05:05]} Qf5+ {[%emt 0:00:08]} 0-1

[Event "Int SVK-ch Open 2020"]
[Site "Drienica"]
[Date "2020.08.08"]
[Round "2.15"]
[White "Holicky, Miroslav"]
[Black "Ihnat, Marek"]
[Result "1-0"]
[ECO "D02"]
[WhiteElo "1793"]
[BlackElo "1490"]
[Annotator "NA"]
[PlyCount "81"]
[EventDate "2020.08.07"]
[EventType "swiss"]
[EventCountry "SVK"]
[SourceTitle "playchess.com"]
[Source "ChessBase"]
[SourceQuality "1"]
[TimeControl "40/5400+30:1800+30"]

1. d4 {[%emt 0:00:00]} d5 {[%emt 0:00:00]} 2. Nf3 {[%emt 0:00:00]} f5 {[%emt 0:01:16]} 3. Nbd2 {[%emt 0:04:51]} Nf6 {[%emt 0:00:38]} 4. e3 {[%emt 0:01:11]} e6 {[%emt 0:00:43]} 5. Bd3 {[%emt 0:01:33]} Bd6 {[%emt 0:00:18]} 6. b3 {[%emt 0:01:53]} O-O {[%emt 0:01:24]} 7. Bb2 {[%emt 0:00:36]} c6 {[%emt 0:01:39]} 8. Qe2 {[%emt 0:03:44]} Qe7 {[%emt 0:00:42]} 9. Ne5 {[%emt 0:03:03]} Bd7 {[%emt 0:01:47]} 10. h3 {[%emt 0:05:30]} Ne4 {[%emt 0:03:55]} 11. c3 {[%emt 0:05:26]} Rf6 {[%emt 0:02:56]} 12. O-O-O {[%emt 0:04:54]} Ba3 {[%emt 0:03:30]} 13. Kc2 {[%emt 0:04:11]} Be8 {[%emt 0:02:06]} 14. Nf1 {[%emt 0:02:25]} Bxb2 {[%emt 0:04:11]} 15. Kxb2 {[%emt 0:00:12]} Rh6 {[%emt 0:02:17]} 16. f3 {[%emt 0:05:17]} Nd6 {[%emt 0:03:23]} 17. g4 {[%emt 0:03:39]} fxg4 {[%emt 0:04:31]} 18. Nxg4 {[%emt 0:01:07]} Rh4 {[%emt 0:01:35]} 19. Ng3 {[%emt 0:04:54]} Nd7 {[%emt 0:03:27]} 20. e4 {[%emt 0:04:58]} h5 {[%emt 0:07:05]} 21. Ne3 {[%emt 0:02:27]} Bg6 {[%emt 0:06:10]} 22. e5 {[%emt 0:07:17]} Bxd3 {[%emt 0:01:26]} 23. Qxd3 {[%emt 0:00:44]} Nb5 {[%emt 0:01:07]} 24. Ng2 {[%emt 0:02:05]} Rf8 {[%emt 0:02:03]} 25. Rdf1 {[%emt 0:08:35]} c5 {[%emt 0:11:25]} 26. Qxb5 {[%emt 0:00:48]} cxd4 {[%emt 0:00:20]} 27. Nxh4 {[%emt 0:00:42]} dxc3+ {[%emt 0:01:10]} 28. Kxc3 {[%emt 0:04:14]} Rc8+ {[%emt 0:05:00]} 29. Kb2 {[%emt 0:00:49]} Nxe5 {[%emt 0:00:31]} 30. Rc1 {[%emt 0:01:59]} Nc6 {[%emt 0:02:27]} 31. Rhg1 {[%emt 0:07:50]} a6 {[%emt 0:03:37]} 32. Qd3 {[%emt 0:00:55]} Qxh4 {[%emt 0:00:31]} 33. Nf5 {[%emt 0:01:11]} Qf6+ {[%emt 0:02:11]} 34. Kb1 {[%emt 0:00:43]} Qxf5 {[%emt 0:01:37]} 35. Qxf5 {[%emt 0:00:14]} exf5 {[%emt 0:00:47]} 36. Rg5 {[%emt 0:00:20]} Rf8 {[%emt 0:05:25]} 37. Rxh5 {[%emt 0:00:20]} g6 {[%emt 0:01:35]} 38. Rg5 {[%emt 0:00:13]} Kg7 {[%emt 0:01:36]} 39. f4 {[%emt 0:01:15]} Re8 {[%emt 0:02:22]} 40. Rcg1 {[%emt 0:01:02]} Re6 {[%emt 0:00:16]} 41. Rxf5 {[%emt 0:32:24]} 1-0

[Event "Int SVK-ch Open 2020"]
[Site "Drienica"]
[Date "2020.08.08"]
[Round "2.16"]
[White "Gulas, Gabriel"]
[Black "Harvan, Tomas"]
[Result "0-1"]
[ECO "B12"]
[WhiteElo "1472"]
[BlackElo "1788"]
[Annotator "NA"]
[PlyCount "72"]
[EventDate "2020.08.07"]
[EventType "swiss"]
[EventCountry "SVK"]
[SourceTitle "playchess.com"]
[Source "ChessBase"]
[SourceQuality "1"]
[TimeControl "40/5400+30:1800+30"]

1. e4 {[%emt 0:00:00]} c6 {[%emt 0:00:00]} 2. d4 {[%emt 0:00:00]} d5 {[%emt 0:00:00]} 3. e5 {[%emt 0:00:00]} c5 {[%emt 0:00:11]} 4. Nf3 {[%emt 0:00:17]} Bg4 {[%emt 0:02:14]} 5. Be2 {[%emt 0:06:31]} e6 {[%emt 0:00:42]} 6. c3 {[%emt 0:00:24]} Nc6 {[%emt 0:01:00]} 7. O-O {[%emt 0:02:12]} cxd4 {[%emt 0:00:46]} 8. cxd4 {[%emt 0:01:40]} Nge7 {[%emt 0:00:24]} 9. Na3 {[%emt 0:05:22]} Nf5 {[%emt 0:01:20]} 10. Nc2 {[%emt 0:05:57]} Qb6 {[%emt 0:05:17]} 11. Be3 {[%emt 0:10:29]} Be7 {[%emt 0:06:10]} 12. b3 {[%emt 0:02:21]} O-O {[%emt 0:01:14]} 13. Qd2 {[%emt 0:01:52]} Rac8 {[%emt 0:03:16]} 14. Rac1 {[%emt 0:01:50]} Nb4 {[%emt 0:11:03]} 15. Nxb4 {[%emt 0:06:00]} Bxb4 {[%emt 0:00:10]} 16. Qb2 {[%emt 0:00:58]} Nxe3 {[%emt 0:10:19]} 17. fxe3 {[%emt 0:00:16]} Qa5 {[%emt 0:05:53]} 18. Rxc8 {[%emt 0:09:21]} Rxc8 {[%emt 0:00:09]} 19. Rd1 {[%emt 0:00:20]} Ba3 {[%emt 0:09:49]} 20. Qb1 {[%emt 0:02:07]} Qc3 {[%emt 0:03:17]} 21. Qd3 {[%emt 0:12:30]} Bf5 {[%emt 0:01:27]} 22. Qxc3 {[%emt 0:00:18]} Rxc3 {[%emt 0:00:08]} 23. Nh4 {[%emt 0:01:49]} Bc2 {[%emt 0:03:48]} 24. Rf1 {[%emt 0:03:19]} Rxe3 {[%emt 0:01:36]} 25. Bb5 {[%emt 0:01:01]} Bd3 {[%emt 0:01:08]} 26. Bxd3 {[%emt 0:00:48]} Rxd3 {[%emt 0:00:08]} 27. Rf4 {[%emt 0:00:00]} Bc1 {[%emt 0:01:40]} 28. Rf3 {[%emt 0:01:24]} Rxd4 {[%emt 0:01:08]} 29. Rc3 {[%emt 0:00:22]} Ba3 {[%emt 0:00:06]} 30. Nf3 {[%emt 0:00:18]} Rd1+ {[%emt 0:01:57]} 31. Kf2 {[%emt 0:00:10]} Rc1 {[%emt 0:03:15]} 32. Rxc1 {[%emt 0:00:37]} Bxc1 {[%emt 0:00:06]} 33. g3 {[%emt 0:02:10]} Bb2 {[%emt 0:00:57]} 34. Ke3 {[%emt 0:00:11]} f6 {[%emt 0:00:32]} 35. Nd4 {[%emt 0:00:51]} Bxd4+ {[%emt 0:00:41]} 36. Kxd4 {[%emt 0:00:12]} fxe5+ {[%emt 0:00:56]} 0-1

[Event "Int SVK-ch Open 2020"]
[Site "Drienica"]
[Date "2020.08.08"]
[Round "2.17"]
[White "Sosovickova, Martina"]
[Black "Soldan, Jan"]
[Result "0-1"]
[ECO "B45"]
[WhiteElo "1362"]
[BlackElo "1782"]
[Annotator "NA"]
[PlyCount "70"]
[EventDate "2020.08.07"]
[EventType "swiss"]
[EventCountry "SVK"]
[SourceTitle "playchess.com"]
[Source "ChessBase"]
[SourceQuality "1"]
[TimeControl "40/5400+30:1800+30"]

1. e4 {[%emt 0:00:00]} c5 {[%emt 0:00:53]} 2. Nf3 {[%emt 0:00:00]} e6 {[%emt 0:02:16]} 3. d4 {[%emt 0:00:03]} cxd4 {[%emt 0:00:07]} 4. Nxd4 {[%emt 0:00:11]} Nc6 {[%emt 0:00:19]} 5. Nc3 {[%emt 0:00:20]} Nf6 {[%emt 0:01:20]} 6. Be2 {[%emt 0:02:56]} Be7 {[%emt 0:00:50]} 7. O-O {[%emt 0:00:30]} O-O {[%emt 0:00:06]} 8. Kh1 {[%emt 0:02:03]} a6 {[%emt 0:00:11]} 9. a4 {[%emt 0:00:23]} b6 {[%emt 0:00:38]} 10. f4 {[%emt 0:01:35]} Bb7 {[%emt 0:00:28]} 11. Bf3 {[%emt 0:02:59]} d5 {[%emt 0:02:35]} 12. exd5 {[%emt 0:07:35]} exd5 {[%emt 0:01:08]} 13. Be3 {[%emt 0:02:23]} Nxd4 {[%emt 0:00:33]} 14. Bxd4 {[%emt 0:00:38]} Qd6 {[%emt 0:00:44]} 15. Qe1 {[%emt 0:08:07]} Rfe8 {[%emt 0:03:47]} 16. Qg3 {[%emt 0:03:38]} Bf8 {[%emt 0:05:06]} 17. Rad1 {[%emt 0:05:23]} Rad8 {[%emt 0:01:33]} 18. Be5 {[%emt 0:01:59]} Qe6 {[%emt 0:01:10]} 19. Rfe1 {[%emt 0:01:40]} Qf5 {[%emt 0:00:22]} 20. Bc7 {[%emt 0:08:40]} Rxe1+ {[%emt 0:00:26]} 21. Rxe1 {[%emt 0:00:42]} Rd7 {[%emt 0:03:03]} 22. Bxb6 {[%emt 0:05:00]} Qxc2 {[%emt 0:01:37]} 23. Qf2 {[%emt 0:07:02]} Qxf2 {[%emt 0:03:16]} 24. Bxf2 {[%emt 0:00:06]} d4 {[%emt 0:00:15]} 25. Bxb7 {[%emt 0:01:19]} dxc3 {[%emt 0:00:20]} 26. Bxa6 {[%emt 0:01:44]} cxb2 {[%emt 0:01:45]} 27. Rb1 {[%emt 0:01:17]} Ba3 {[%emt 0:02:26]} 28. a5 {[%emt 0:04:40]} Ne4 {[%emt 0:01:11]} 29. Be1 {[%emt 0:01:31]} Rc7 {[%emt 0:00:45]} 30. Bd3 {[%emt 0:01:08]} Nc3 {[%emt 0:02:14]} 31. Bxc3 {[%emt 0:01:09]} Rxc3 {[%emt 0:00:08]} 32. Rd1 {[%emt 0:00:58]} Rxd3 {[%emt 0:00:29]} 33. Re1 {[%emt 0:01:01]} Kf8 {[%emt 0:00:10]} 34. a6 {[%emt 0:00:51]} Rd8 {[%emt 0:00:13]} 35. a7 {[%emt 0:00:50]} Ra8 {[%emt 0:00:03]} 0-1

[Event "Int SVK-ch Open 2020"]
[Site "Drienica"]
[Date "2020.08.08"]
[Round "2.18"]
[White "Ihnat Marek"]
[Black "Durica, Andrej"]
[Result "1-0"]
[ECO "C40"]
[WhiteElo "2046"]
[BlackElo "1911"]
[Annotator "RC"]
[PlyCount "93"]
[EventDate "2020.08.07"]
[EventType "swiss"]
[EventCountry "SVK"]
[SourceTitle "playchess.com"]
[Source "ChessBase"]
[SourceQuality "1"]
[TimeControl "40/5400+30:1800+30"]

1. e4 {[%emt 0:00:00]} e5 {[%emt 0:00:00]} 2. Nf3 {[%emt 0:00:00]} f5 {[%emt 0:00:00]} 3. Nxe5 {[%emt 0:00:14]} Qf6 {[%emt 0:00:00]} 4. d4 {[%emt 0:00:08]} d6 {[%emt 0:00:06]} 5. Nc4 {[%emt 0:00:07]} fxe4 {[%emt 0:00:16]} 6. Nc3 {[%emt 0:00:15]} Qg6 {[%emt 0:00:08]} 7. f3 {[%emt 0:00:10]} exf3 {[%emt 0:03:04]} 8. Qxf3 {[%emt 0:00:13]} Nf6 {[%emt 0:00:05]} 9. Bd3 {[%emt 0:03:06]} Qg4 {[%emt 0:00:06]} 10. O-O {[%emt 0:04:18]} Qxf3 {[%emt 0:01:04]} 11. Rxf3 {[%emt 0:00:10]} Nc6 {[%emt 0:00:33]} 12. Bg5 {[%emt 0:21:35]} Be7 {[%emt 0:03:29]} 13. Re1 {[%emt 0:19:05]} Kd8 {[%emt 0:02:29]} 14. Rfe3 {[%emt 0:05:27]} h6 {[%emt 0:08:30]} 15. Bh4 {[%emt 0:05:10]} g5 {[%emt 0:00:19]} 16. Bg3 {[%emt 0:00:28]} Ng4 {[%emt 0:00:44]} 17. R3e2 {[%emt 0:03:29]} Bf6 {[%emt 0:00:17]} 18. d5 {[%emt 0:12:37]} Bd4+ {[%emt 0:04:17]} 19. Kh1 {[%emt 0:00:13]} Nce5 {[%emt 0:00:47]} 20. Nxe5 {[%emt 0:03:04]} Nxe5 {[%emt 0:01:07]} 21. Bxe5 {[%emt 0:03:02]} Bxe5 {[%emt 0:00:22]} 22. Rf2 {[%emt 0:03:15]} c6 {[%emt 0:13:39]} 23. Be4 {[%emt 0:01:54]} Bd7 {[%emt 0:01:51]} 24. Nd1 {[%emt 0:01:05]} Ke7 {[%emt 0:01:13]} 25. c3 {[%emt 0:00:53]} Raf8 {[%emt 0:00:33]} 26. Ref1 {[%emt 0:00:26]} Rxf2 {[%emt 0:01:08]} 27. Rxf2 {[%emt 0:00:01]} Rf8 {[%emt 0:00:25]} 28. Rxf8 {[%emt 0:00:12]} Kxf8 {[%emt 0:00:08]} 29. Ne3 {[%emt 0:00:36]} Ke7 {[%emt 0:02:22]} 30. g3 {[%emt 0:02:11]} Kf6 {[%emt 0:02:56]} 31. Kg2 {[%emt 0:00:33]} g4 {[%emt 0:00:27]} 32. Kf2 {[%emt 0:01:28]} Kg5 {[%emt 0:03:20]} 33. Nc4 {[%emt 0:02:21]} cxd5 {[%emt 0:06:32]} 34. Nxe5 {[%emt 0:01:15]} dxe5 {[%emt 0:00:28]} 35. Bxd5 {[%emt 0:00:09]} Bc6 {[%emt 0:01:23]} 36. Bxc6 {[%emt 0:01:00]} bxc6 {[%emt 0:00:06]} 37. b4 {[%emt 0:02:11]} Kf5 {[%emt 0:03:32]} 38. Ke3 {[%emt 0:02:27]} Ke6 {[%emt 0:02:31]} 39. Ke4 {[%emt 0:00:36]} Kd6 {[%emt 0:02:19]} 40. c4 {[%emt 0:01:41]} Ke6 {[%emt 0:03:14]} 41. a4 {[%emt 0:09:20]} Kf6 {[%emt 0:13:51]} 42. b5 {[%emt 0:01:31]} cxb5 {[%emt 0:00:49]} 43. cxb5 {[%emt 0:00:27]} Ke6 {[%emt 0:00:27]} 44. a5 {[%emt 0:00:05]} Kd6 {[%emt 0:01:57]} 45. b6 {[%emt 0:00:26]} a6 {[%emt 0:00:15]} 46. Kf5 {[%emt 0:01:09]} h5 {[%emt 0:00:12]} 47. Ke4 {[%emt 0:00:28]} 1-0

[Event "Int SVK-ch Open 2020"]
[Site "Drienica"]
[Date "2020.08.08"]
[Round "2.18"]
[White "Elias, David"]
[Black "Kulich, Filip"]
[Result "1-0"]
[ECO "C42"]
[WhiteElo "1790"]
[BlackElo "1397"]
[Annotator "NA"]
[PlyCount "68"]
[EventDate "2020.08.07"]
[EventType "swiss"]
[EventCountry "SVK"]
[SourceTitle "playchess.com"]
[Source "ChessBase"]
[SourceQuality "1"]
[TimeControl "40/5400+30:1800+30"]

1. e4 {[%emt 0:00:00]} e5 2. Nf3 {[%emt 0:00:00]} Nf6 {[%emt 0:05:00]} 3. Nxe5 {[%emt 0:00:04]} d6 {[%emt 0:00:15]} 4. Nf3 {[%emt 0:00:09]} Nxe4 {[%emt 0:00:08]} 5. Nc3 {[%emt 0:00:13]} Nxc3 {[%emt 0:00:05]} 6. dxc3 {[%emt 0:00:10]} Bf5 {[%emt 0:00:33]} 7. Be3 {[%emt 0:01:17]} Nc6 {[%emt 0:02:49]} 8. Qd2 {[%emt 0:01:48]} Be7 {[%emt 0:01:40]} 9. O-O-O {[%emt 0:01:27]} O-O {[%emt 0:00:16]} 10. h4 {[%emt 0:01:10]} Be6 {[%emt 0:00:35]} 11. Kb1 {[%emt 0:01:02]} Na5 {[%emt 0:04:42]} 12. h5 {[%emt 0:00:37]} Bf6 {[%emt 0:03:16]} 13. Nd4 {[%emt 0:12:36]} Nc4 {[%emt 0:02:27]} 14. Bxc4 {[%emt 0:00:19]} Bxc4 {[%emt 0:00:05]} 15. g4 {[%emt 0:00:25]} h6 {[%emt 0:10:38]} 16. f4 {[%emt 0:05:05]} Bxd4 {[%emt 0:12:46]} 17. Qxd4 {[%emt 0:01:17]} Be2 {[%emt 0:08:04]} 18. Rdg1 {[%emt 0:05:38]} Qf6 {[%emt 0:01:43]} 19. Qd2 {[%emt 0:02:04]} Bf3 {[%emt 0:05:21]} 20. Rh3 {[%emt 0:00:11]} Be4 {[%emt 0:02:10]} 21. Bd4 {[%emt 0:00:10]} Qe6 {[%emt 0:00:56]} 22. f5 {[%emt 0:00:41]} Qd5 {[%emt 0:01:19]} 23. g5 {[%emt 0:10:24]} c5 {[%emt 0:03:24]} 24. gxh6 {[%emt 0:00:59]} cxd4 {[%emt 0:02:13]} 25. Qg5 {[%emt 0:02:10]} Qe5 {[%emt 0:01:07]} 26. cxd4 {[%emt 0:01:05]} Bxc2+ {[%emt 0:06:01]} 27. Ka1 {[%emt 0:04:46]} Qxd4 {[%emt 0:01:51]} 28. f6 {[%emt 0:08:14]} Bg6 {[%emt 0:00:21]} 29. hxg6 {[%emt 0:05:27]} Qxf6 {[%emt 0:00:51]} 30. h7+ {[%emt 0:00:17]} Kh8 {[%emt 0:00:08]} 31. Qxf6 {[%emt 0:00:06]} fxg6 {[%emt 0:00:32]} 32. Qxg6 {[%emt 0:00:19]} Rf1+ {[%emt 0:00:54]} 33. Rxf1 {[%emt 0:00:23]} Rc8 {[%emt 0:00:12]} 34. Qf7 {[%emt 0:00:25]} Rc1+ {[%emt 0:00:07]} 1-0

[Event "Int SVK-ch Open 2020"]
[Site "Drienica"]
[Date "2020.08.08"]
[Round "2.19"]
[White "Durica, Daniel"]
[Black "Brhel Jan"]
[Result "1-0"]
[ECO "D00"]
[WhiteElo "1935"]
[BlackElo "2042"]
[Annotator "ChessBase"]
[PlyCount "51"]
[EventDate "2020.08.07"]
[EventType "swiss"]
[EventCountry "SVK"]
[SourceTitle "playchess.com"]
[Source "ChessBase"]
[SourceQuality "1"]
[TimeControl "40/5400+30:1800+30"]

1. d4 {[%emt 0:04:53]} d5 {[%emt 0:00:00]} 2. e4 {[%emt 0:00:13]} dxe4 {[%emt 0:01:02]} 3. Nc3 {[%emt 0:00:02]} Nf6 {[%emt 0:00:15]} 4. f3 {[%emt 0:00:02]} exf3 {[%emt 0:01:17]} 5. Nxf3 {[%emt 0:00:02]} c6 {[%emt 0:02:52]} 6. Bd3 {[%emt 0:00:04]} Bg4 {[%emt 0:01:08]} 7. Be3 {[%emt 0:00:40]} e6 {[%emt 0:00:38]} 8. O-O {[%emt 0:00:14]} Bd6 {[%emt 0:05:38]} 9. Qe1 {[%emt 0:00:04]} Bxf3 {[%emt 0:00:35]} 10. Rxf3 {[%emt 0:00:28]} O-O {[%emt 0:01:57]} 11. Qh4 {[%emt 0:00:16]} Nbd7 {[%emt 0:07:36]} 12. Bg5 {[%emt 0:00:38]} h5 {[%emt 0:05:15]} 13. Ne4 {[%emt 0:11:13]} Be7 {[%emt 0:00:08]} 14. c4 {[%emt 0:09:51]} Re8 {[%emt 0:02:20]} 15. Raf1 {[%emt 0:07:49]} Nxe4 {[%emt 0:00:50]} 16. Qxe4 {[%emt 0:00:07]} Nf6 {[%emt 0:00:46]} 17. Rxf6 {[%emt 0:00:09]} Bxf6 {[%emt 0:00:58]} 18. Rxf6 {[%emt 0:00:01]} gxf6 {[%emt 0:00:40]} 19. Qh7+ {[%emt 0:00:02]} Kf8 {[%emt 0:00:29]} 20. Qh6+ {[%emt 0:00:30]} Ke7 {[%emt 0:00:49]} 21. Bxf6+ {[%emt 0:00:00]} Kd7 {[%emt 0:00:09]} 22. Bxd8 {[%emt 0:00:24]} Raxd8 {[%emt 0:00:07]} 23. Qxh5 {[%emt 0:00:53]} f5 {[%emt 0:02:29]} 24. d5 {[%emt 0:04:23]} cxd5 {[%emt 0:00:14]} 25. cxd5 {[%emt 0:00:07]} Ke7 {[%emt 0:02:09]} 26. Bb5 {[%emt 0:04:52]} 1-0

[Event "Int SVK-ch Open 2020"]
[Site "Drienica"]
[Date "2020.08.08"]
[Round "2.19"]
[White "Magda, Filip"]
[Black "Sevcik, Lubomir"]
[Result "0-1"]
[ECO "D00"]
[WhiteElo "1266"]
[BlackElo "1748"]
[Annotator "NA RC"]
[PlyCount "92"]
[EventDate "2020.08.07"]
[EventType "swiss"]
[EventCountry "SVK"]
[SourceTitle "playchess.com"]
[Source "ChessBase"]
[SourceQuality "1"]
[TimeControl "40/5400+30:1800+30"]

1. d4 {[%emt 0:01:00]} d5 {[%emt 0:00:00]} 2. e4 {[%emt 0:00:30]} dxe4 {[%emt 0:00:25]} 3. Nc3 {[%emt 0:00:40]} Nf6 {[%emt 0:05:19]} 4. f3 {[%emt 0:02:06]} Bf5 {[%emt 0:05:40]} 5. fxe4 {[%emt 0:05:26]} Bxe4 {[%emt 0:00:41]} 6. Nxe4 {[%emt 0:01:35]} Nxe4 {[%emt 0:00:15]} 7. Nf3 {[%emt 0:01:19]} e6 {[%emt 0:02:58]} 8. Bd3 {[%emt 0:02:14]} Bb4+ {[%emt 0:04:11]} 9. Ke2 {[%emt 0:15:00]} Nf6 {[%emt 0:03:19]} 10. c3 {[%emt 0:01:49]} Be7 {[%emt 0:00:53]} 11. Qb3 {[%emt 0:04:21]} b6 {[%emt 0:09:27]} 12. Qa4+ {[%emt 0:05:35]} c6 {[%emt 0:06:00]} 13. Re1 {[%emt 0:04:27]} b5 {[%emt 0:05:32]} 14. Qc2 {[%emt 0:01:00]} Qc7 {[%emt 0:01:48]} 15. Kf1 {[%emt 0:02:11]} Nbd7 {[%emt 0:03:05]} 16. Bd2 {[%emt 0:05:00]} Bd6 {[%emt 0:00:36]} 17. h3 {[%emt 0:01:15]} O-O {[%emt 0:05:42]} 18. c4 {[%emt 0:07:18]} bxc4 {[%emt 0:01:34]} 19. Bxc4 {[%emt 0:02:26]} a5 {[%emt 0:08:53]} 20. a4 {[%emt 0:03:58]} Nb6 {[%emt 0:01:43]} 21. Bd3 {[%emt 0:00:23]} Nbd5 {[%emt 0:00:23]} 22. Ng5 {[%emt 0:02:42]} h6 {[%emt 0:02:18]} 23. Ne4 {[%emt 0:03:15]} Bf4 {[%emt 0:06:18]} 24. Nxf6+ {[%emt 0:01:52]} Nxf6 {[%emt 0:01:05]} 25. Kg1 {[%emt 0:00:44]} Bxd2 {[%emt 0:02:26]} 26. Qxd2 {[%emt 0:00:53]} Qb6 {[%emt 0:00:32]} 27. Kh1 {[%emt 0:02:05]} Rfd8 {[%emt 0:00:38]} 28. Rf1 {[%emt 0:03:44]} Qxd4 {[%emt 0:01:20]} 29. Rfd1 {[%emt 0:01:16]} Ne4 {[%emt 0:03:06]} 30. Qc2 {[%emt 0:01:23]} Nf2+ {[%emt 0:00:47]} 31. Kh2 {[%emt 0:00:17]} Qe5+ {[%emt 0:01:12]} 32. Kg1 {[%emt 0:00:49]} Nxd1 {[%emt 0:00:30]} 33. Rxd1 {[%emt 0:00:58]} c5 {[%emt 0:02:09]} 34. b3 {[%emt 0:01:19]} Kh8 {[%emt 0:02:54]} 35. Rf1 {[%emt 0:00:54]} Qe3+ {[%emt 0:00:40]} 36. Kh1 {[%emt 0:00:54]} Qxd3 37. Qxd3 {[%emt 0:00:56]} Rxd3 {[%emt 0:01:54]} 38. Rxf7 Rxb3 39. Rc7 {[%emt 0:02:03]} Rc3 {[%emt 0:01:15]} 40. Re7 {[%emt 0:00:13]} Rc4 {[%emt 0:00:18]} 41. Rxe6 {[%emt 0:00:12]} Rxa4 {[%emt 0:00:13]} 42. Rc6 {[%emt 0:01:37]} Rc4 {[%emt 0:01:24]} 43. Re6 {[%emt 0:01:50]} Rc1+ {[%emt 0:00:30]} 44. Kh2 {[%emt 0:00:05]} c4 {[%emt 0:00:29]} 45. Re2 {[%emt 0:00:34]} a4 {[%emt 0:00:18]} 46. Ra2 {[%emt 0:00:25]} a3 {[%emt 0:00:06]} 0-1

[Event "Int SVK-ch Open 2020"]
[Site "Drienica"]
[Date "2020.08.08"]
[Round "2.20"]
[White "Belis, Rudolf"]
[Black "Panko, Radoslav"]
[Result "0-1"]
[ECO "C18"]
[WhiteElo "1922"]
[BlackElo "2031"]
[Annotator "ChessBase"]
[PlyCount "78"]
[EventDate "2020.08.07"]
[EventType "swiss"]
[EventCountry "SVK"]
[SourceTitle "playchess.com"]
[Source "ChessBase"]
[SourceQuality "1"]
[TimeControl "40/5400+30:1800+30"]

1. e4 {[%emt 0:00:30]} e6 {[%emt 0:00:49]} 2. d4 {[%emt 0:00:25]} d5 {[%emt 0:00:08]} 3. Nc3 {[%emt 0:00:02]} Bb4 {[%emt 0:00:15]} 4. e5 {[%emt 0:00:17]} Ne7 {[%emt 0:00:08]} 5. a3 {[%emt 0:00:23]} Bxc3+ {[%emt 0:00:09]} 6. bxc3 {[%emt 0:00:01]} c5 {[%emt 0:00:10]} 7. h4 {[%emt 0:00:20]} Qc7 {[%emt 0:01:13]} 8. h5 {[%emt 0:01:25]} h6 {[%emt 0:02:11]} 9. Rh4 {[%emt 0:01:02]} Nbc6 {[%emt 0:01:03]} 10. Nf3 {[%emt 0:02:57]} Bd7 {[%emt 0:00:51]} 11. a4 {[%emt 0:01:03]} Nf5 {[%emt 0:03:55]} 12. Rf4 {[%emt 0:01:02]} cxd4 {[%emt 0:01:03]} 13. cxd4 {[%emt 0:00:05]} Nb4 {[%emt 0:00:23]} 14. Bd3 {[%emt 0:11:54]} Qc3+ {[%emt 0:00:39]} 15. Bd2 {[%emt 0:00:48]} Nxd3+ {[%emt 0:00:11]} 16. cxd3 {[%emt 0:04:00]} Qxd3 {[%emt 0:00:25]} 17. Bb4 {[%emt 0:00:38]} Qxd1+ {[%emt 0:00:44]} 18. Kxd1 {[%emt 0:00:02]} Rc8 {[%emt 0:00:28]} 19. a5 {[%emt 0:01:11]} Bb5 {[%emt 0:01:48]} 20. Bc5 {[%emt 0:00:12]} a6 {[%emt 0:01:32]} 21. Kd2 {[%emt 0:01:39]} Ne7 {[%emt 0:00:39]} 22. Rh4 {[%emt 0:00:59]} Nc6 {[%emt 0:00:30]} 23. Rg4 {[%emt 0:01:57]} Rh7 {[%emt 0:00:54]} 24. Bb6 {[%emt 0:03:00]} Nb4 {[%emt 0:08:55]} 25. Bc5 {[%emt 0:00:38]} Nd3 {[%emt 0:00:21]} 26. Ke3 {[%emt 0:00:03]} Nxc5 {[%emt 0:04:17]} 27. Rc1 {[%emt 0:00:14]} Bc4 {[%emt 0:00:07]} 28. dxc5 {[%emt 0:00:15]} Rxc5 {[%emt 0:00:04]} 29. Nd2 {[%emt 0:00:20]} Rxa5 {[%emt 0:00:17]} 30. Nxc4 {[%emt 0:00:06]} dxc4 {[%emt 0:00:08]} 31. Rgxc4 {[%emt 0:00:13]} Rxe5+ {[%emt 0:00:15]} 32. Kf4 {[%emt 0:01:23]} Rxh5 {[%emt 0:00:22]} 33. Rc7 {[%emt 0:00:27]} Rb5 {[%emt 0:00:42]} 34. Rd1 {[%emt 0:00:20]} g5+ {[%emt 0:00:11]} 35. Kg3 {[%emt 0:00:24]} Kf8 {[%emt 0:01:13]} 36. Rdd7 {[%emt 0:00:43]} Kg8 {[%emt 0:00:49]} 37. Rxb7 {[%emt 0:00:31]} Rxb7 {[%emt 0:01:44]} 38. Rxb7 {[%emt 0:00:02]} f6 {[%emt 0:00:08]} 39. Rb6 {[%emt 0:00:04]} Ra7 {[%emt 0:00:07]} 0-1